[Event "8th Brazilian Open SESC Caioba 2024"]
[Site "Caioba"]
[Date "2024.06.28"]
[Round "7.1"]
[White "Mekhitarian, Krikor Sevag"]
[Black "Delgado Ramirez, Neuris"]
[Result "1/2-1/2"]
[ECO "E11"]
[WhiteElo "2554"]
[BlackElo "2487"]
[Annotator "TA"]
[PlyCount "31"]
[EventDate "2024.06.15"]
[EventCountry "BRA"]
[SourceTitle "playchess.com"]
[Source "ChessBase"]
[SourceQuality "1"]
[TimeControl "5400+30"]

{[%evp 14,31,31,35,33,18,34,20,12,13,28,12,23,16,18,14,36,32,46,0]} 1. d4 {[%emt 0:01:05]} Nf6 {[%emt 1:31:00]} 2. c4 {[%emt 0:00:02]} e6 {[%emt 0:00:00]} 3. Nf3 {[%emt 0:00:08]} Bb4+ {[%emt 0:00:00]} 4. Bd2 {[%emt 0:00:03]} Qe7 {[%emt 0:00:00]} 5. g3 {[%emt 0:01:24]} Bxd2+ {[%emt 0:00:00]} 6. Qxd2 {[%emt 0:00:12]} d5 {[%emt 0:00:00]} 7. Bg2 {[%emt 0:01:39]} O-O {[%emt 0:00:00]} 8. O-O {[%emt 0:00:46]} c6 {[%emt 0:00:00]} 9. Nc3 {[%emt 0:24:35]} Nbd7 {[%emt 0:00:00]} 10. Rfd1 {[%emt 0:08:30]} dxc4 {[%emt 0:00:00] The position is equal.} 11. Ne5 {[%emt 0:00:56]} Nb6 {[%emt 0:00:00]} 12. Rac1 {[%emt 0:10:34]} Rd8 {[%emt 0:00:00]} 13. Ne4 {[%emt 0:04:02]} Nxe4 {[%emt 0:00:00]} 14. Bxe4 {[%emt 0:00:10][%cal Od2c2]} f6 {[%emt 0:00:00]} 15. Nxc4 {[%emt 0:00:55]} e5 {[%emt 0:00:00]} 16. Qc3 {[%emt 0:27:24] Weighted Error Value: White=0.05 (flawless) /Black=0.10 (very precise) .  Mistake:       	White=1     	---        OK:         	White=4     	Black=2} (16. Nxb6 $14 axb6 17. Qe3) 1/2-1/2

[Event "8th Brazilian Open SESC Caioba 2024"]
[Site "Caioba"]
[Date "2024.06.28"]
[Round "7.4"]
[White "Duarte Napoles, Fanny"]
[Black "Perdomo, Leandro"]
[Result "1/2-1/2"]
[ECO "E71"]
[WhiteElo "2202"]
[BlackElo "2391"]
[Annotator "RC"]
[PlyCount "69"]
[EventDate "2024.06.15"]
[EventCountry "BRA"]
[SourceTitle "playchess.com"]
[Source "ChessBase"]
[SourceQuality "1"]
[TimeControl "5400+30"]

1. d4 {[%emt 0:00:30]} Nf6 {[%emt 0:00:05]} 2. c4 {[%emt 0:00:00]} g6 {[%emt 0:00:02]} 3. Nc3 {[%emt 0:00:00]} Bg7 {[%emt 0:00:02]} 4. e4 {[%emt 0:00:00]} d6 {[%emt 0:00:03]} 5. h3 {[%emt 0:00:04]} O-O {[%emt 0:00:04]} 6. Be3 {[%emt 0:00:03]} e5 {[%emt 0:02:48]} 7. d5 {[%emt 0:00:03]} Na6 {[%emt 0:00:03]} 8. g4 {[%emt 0:00:12]} Nc5 {[%emt 0:00:21]} 9. f3 {[%emt 0:00:11]} c6 {[%emt 0:00:19]} 10. Nge2 {[%emt 0:00:30]} cxd5 {[%emt 0:02:08]} 11. cxd5 {[%emt 0:00:09]} h5 {[%emt 0:09:27]} 12. Qd2 {[%emt 0:03:18]} Bd7 {[%emt 0:09:57]} 13. Ng3 {[%emt 0:00:47]} h4 {[%emt 0:07:58]} 14. Nge2 {[%emt 0:02:28]} Nh7 {[%emt 0:08:37]} 15. b4 {[%emt 0:07:28]} Na6 {[%emt 0:01:15]} 16. a3 {[%emt 0:00:02]} Bf6 {[%emt 0:01:11]} 17. Nc1 {[%emt 0:00:48]} Bg5 {[%emt 0:03:07]} 18. Nb3 {[%emt 0:00:22]} Rc8 {[%emt 0:27:37]} 19. Be2 {[%emt 0:07:08]} Bxe3 {[%emt 0:06:56]} 20. Qxe3 {[%emt 0:00:25]} Qb6 {[%emt 0:01:19]} 21. Qxb6 {[%emt 0:00:44]} axb6 {[%emt 0:00:02]} 22. Rc1 {[%emt 0:00:41]} Ng5 {[%emt 0:00:33]} 23. Kf2 {[%emt 0:01:05]} Kh7 {[%emt 0:04:24]} 24. Kg2 {[%emt 0:00:44]} Rc7 {[%emt 0:06:36]} 25. Na2 {[%emt 0:02:27]} Rfc8 {[%emt 0:02:13]} 26. Rxc7 {[%emt 0:00:10]} Rxc7 {[%emt 0:00:01]} 27. Rc1 {[%emt 0:00:06]} Rxc1 {[%emt 0:00:12]} 28. Naxc1 {[%emt 0:00:04]} Nc7 {[%emt 0:00:26]} 29. Nd2 {[%emt 0:00:57]} b5 {[%emt 0:00:13]} 30. Nb1 {[%emt 0:00:28]} f5 {[%emt 0:02:57]} 31. Nc3 {[%emt 0:00:43]} Kg7 {[%emt 0:00:05]} 32. Nb3 {[%emt 0:01:05]} b6 {[%emt 0:00:01]} 33. Bd3 {[%emt 0:01:42]} f4 {[%emt 0:01:40]} 34. Bf1 {[%emt 0:00:25]} Kf8 {[%emt 0:00:22]} 35. Kf2 {[%emt 0:00:19]} 1/2-1/2

[Event "8th Brazilian Open SESC Caioba 2024"]
[Site "Caioba"]
[Date "2024.06.28"]
[Round "7.5"]
[White "Nemeth Junior, Henrique"]
[Black "Filgueiras, Nathan Felipe"]
[Result "0-1"]
[ECO "D32"]
[WhiteElo "2191"]
[BlackElo "2294"]
[Annotator "RC"]
[PlyCount "37"]
[EventDate "2024.06.15"]
[EventCountry "BRA"]
[SourceTitle "playchess.com"]
[Source "ChessBase"]
[SourceQuality "1"]
[TimeControl "5400+30"]

1. c4 {[%emt 0:00:03]} e6 {[%emt 0:06:54]} 2. Nf3 {[%emt 0:00:31]} Nf6 {[%emt 0:01:31]} 3. Nc3 {[%emt 0:00:11]} d5 {[%emt 0:00:05]} 4. e3 {[%emt 0:00:04]} c5 {[%emt 0:00:13]} 5. cxd5 {[%emt 0:00:08]} exd5 {[%emt 0:00:11]} 6. Bb5+ {[%emt 0:00:05]} Nc6 {[%emt 0:01:36]} 7. d4 {[%emt 0:00:38]} Bd6 {[%emt 0:02:19]} 8. dxc5 {[%emt 0:02:55]} Bxc5 {[%emt 0:00:38]} 9. O-O {[%emt 0:00:06]} O-O {[%emt 0:01:35]} 10. Be2 {[%emt 0:03:57]} Re8 {[%emt 0:01:14]} 11. b3 {[%emt 0:01:45]} a6 {[%emt 0:02:47]} 12. Bb2 {[%emt 0:01:47]} Ba7 {[%emt 0:00:42]} 13. Re1 {[%emt 0:08:29]} Qd6 {[%emt 0:06:39]} 14. Qd2 {[%emt 0:09:34]} Bg4 {[%emt 0:02:07]} 15. Rad1 {[%emt 0:00:40]} Rad8 {[%emt 0:02:20]} 16. g3 {[%emt 0:23:05]} Qe6 {[%emt 0:13:22]} 17. Qc1 {[%emt 0:09:36]} h6 {[%emt 0:06:05]} 18. Nh4 {[%emt 0:03:08]} g5 {[%emt 0:03:54]} 19. Nf3 {[%emt 0:07:51]} 0-1

[Event "8th Brazilian Open SESC Caioba 2024"]
[Site "Caioba"]
[Date "2024.06.28"]
[Round "7.6"]
[White "Labussiere, Yago"]
[Black "Di Berardino, Diego Rafael"]
[Result "0-1"]
[ECO "D41"]
[WhiteElo "2219"]
[BlackElo "2473"]
[Annotator "TA"]
[PlyCount "114"]
[EventDate "2024.06.15"]
[EventCountry "BRA"]
[SourceTitle "playchess.com"]
[Source "ChessBase"]
[SourceQuality "1"]
[TimeControl "5400+30"]

{[%evp 17,114,15,20,-9,5,-3,2,-52,-54,-48,-46,-48,-48,-35,-44,-43,-37,-37,-39,-49,-42,-33,-31,-35,-45,-42,-38,-47,-32,-50,-30,-42,-39,-36,-27,-30,-24,-31,0,-25,-28,-33,-28,-42,-33,-46,-37,-33,-33,-37,-21,-32,-27,-28,0,-37,-27,-31,-27,-38,-28,-31,-25,-26,-27,-21,-23,-29,0,-12,-8,-14,-8,-8,-8,-8,-8,-64,0,0,0,-52,-23,-72,-71,-96,-79,-412,-411,-409,-412,-458,-469,-694,-690,-669,-669,-29994,-29995]} 1. c4 {[%emt 0:05:50]} Nf6 {[%emt 0:02:03]} 2. Nc3 {[%emt 0:02:45]} c5 {[%emt 0:00:27]} 3. Nf3 {[%emt 0:00:15]} d5 {[%emt 0:00:49]} 4. cxd5 {[%emt 0:00:06]} Nxd5 {[%emt 0:00:02]} 5. e3 {[%emt 0:00:14]} e6 {[%emt 0:00:41]} 6. Bc4 {[%emt 0:01:31]} Nc6 {[%emt 0:01:31]} 7. d4 {[%emt 0:03:58]} cxd4 {[%emt 0:00:10]} 8. exd4 {[%emt 0:00:17]} Be7 {[%emt 0:00:13]} 9. O-O {[%emt 0:00:33]} O-O {[%emt 0:00:06]} 10. Bd3 {[%emt 0:10:35]} Bf6 {[%emt 0:02:35]} 11. Re1 {[%emt 0:09:17]} Ndb4 {[%emt 0:17:19]} 12. Be3 {[%emt 0:02:49]} (12. Be4 $11) 12... Nxd3 $1 $15 {[%emt 0:00:14]} 13. Qxd3 {[%emt 0:00:02]} b6 {[%emt 0:25:59]} 14. Ne4 {[%emt 0:17:24]} Nb4 {[%emt 0:12:50]} 15. Nxf6+ {[%emt 0:03:01]} Qxf6 {[%emt 0:00:03]} 16. Qd2 {[%emt 0:05:48]} Qe7 {[%emt 0:02:51]} 17. Ne5 {[%emt 0:11:00]} Bb7 {[%emt 0:01:04]} 18. a3 {[%emt 0:01:23]} Nd5 {[%emt 0:01:13]} 19. Rac1 {[%emt 0:07:04]} Rad8 {[%emt 0:04:41]} 20. Nc6 {[%emt 0:05:38]} Bxc6 {[%emt 0:00:21]} 21. Rxc6 {[%emt 0:00:02]} h6 {[%emt 0:08:56]} 22. Rec1 {[%emt 0:05:18]} Qf6 {[%emt 0:00:15]} 23. Qc2 {[%emt 0:01:16]} Rfe8 {[%emt 0:07:29]} 24. Qa4 {[%emt 0:03:54]} Qe7 {[%emt 0:01:05]} 25. h3 {[%emt 0:01:01]} Qb7 {[%emt 0:01:18]} 26. Qc2 $1 {[%emt 0:01:20]} Rd7 {[%emt 0:01:21]} 27. Rc8 {[%emt 0:00:24]} Rdd8 {[%emt 0:00:58]} 28. Rxd8 {[%emt 0:00:13]} Rxd8 {[%emt 0:00:07]} 29. Qc6 {[%emt 0:01:06]} Qe7 {[%emt 0:00:24]} 30. Re1 {[%emt 0:00:38]} Qh4 {[%emt 0:00:41]} 31. Rd1 {[%emt 0:00:45]} Qh5 {[%emt 0:00:37]} 32. Rc1 {[%emt 0:00:28]} Qf5 {[%emt 0:01:25]} 33. Qc2 {[%emt 0:00:18]} Qf6 {[%emt 0:00:10]} 34. Qe4 {[%emt 0:00:39]} Qe7 {[%emt 0:01:13]} 35. Qc2 {[%emt 0:00:28]} Qb7 {[%emt 0:03:17]} (35... Rd7 {seems wilder.} 36. Qc8+ Kh7 37. Bd2 Qd6) 36. Qc6 {[%emt 0:00:21]} Qb8 {[%emt 0:01:26]} 37. Qc2 {[%emt 0:00:38]} Qd6 {[%emt 0:00:48]} 38. Qc6 {[%emt 0:00:32]} Qxc6 {[%emt 0:01:09]} 39. Rxc6 {[%emt 0:00:02][%mdl 4096] Endgame. KRB-KRN} Kf8 {[%emt 0:00:20]} 40. Kf1 {[%emt 0:00:32]} Ke7 {[%emt 0:00:05]} 41. Ke2 {[%emt 0:00:31]} Kd7 {[%emt 0:00:09]} 42. Rc1 {[%emt 0:00:20]} f5 {[%emt 0:01:14]} 43. Kd3 {[%emt 0:00:53]} Rc8 {[%emt 0:00:44]} 44. Rg1 {[%emt 0:00:42]} g5 {[%emt 0:01:24]} 45. Bd2 {[%emt 0:00:28]} Rf8 {[%emt 0:00:27]} 46. Rh1 {[%emt 0:00:18]} Rg8 {[%emt 0:00:23]} 47. f3 {[%emt 0:00:47]} ({White should try} 47. g4 $11) 47... h5 {[%emt 0:00:26]} (47... Nf4+ $15 48. Bxf4 gxf4) 48. g4 $11 {[%emt 0:00:32]} f4 {[%emt 0:00:51]} 49. Re1 {[%emt 0:00:32]} ({Much worse is} 49. gxh5 Rh8 $17) (49. h4 $11 hxg4 50. fxg4) 49... Ke7 {[%emt 0:00:24]} 50. Bb4+ {[%emt 0:00:29] [#]} (50. gxh5 $11 Rh8 51. h4) 50... Kf7 $1 $17 {[%emt 0:00:22]} 51. Rg1 {[%emt 0:00:30]} Rh8 {[%emt 0:00:11] Hoping for ...hxg4.} 52. Ke4 $2 {[%emt 0:00:31][%mdl 8192] White does not recover from this.} (52. gxh5 $17 {is a better chance.} Rxh5 53. Rh1) 52... hxg4 $19 {[%emt 0:00:37]} 53. hxg4 {[%emt 0:00:14]} Rh2 {[%emt 0:00:07] Dodges Rg2} 54. Ke5 {[%emt 0:00:34]} a5 {[%emt 0:00:21]} ({Weaker is} 54... Rxb2 55. Rh1 $19) 55. Be1 {[%emt 0:00:37]} (55. Bc3 $142 Ke7 56. Ke4) 55... Ke7 {[%emt 0:00:33][%cal Rh2e2] [#]} 56. Ke4 {[%emt 0:00:36]} Rxb2 {[%emt 0:00:19] ( -> ...Rb3)} 57. Rh1 {[%emt 0:00:05]} Rb3 {[%emt 0:02:12] Weighted Error Value: White=0.37/Black=0.08 (flawless) .  Loses game:     	White=1     	---        Mistake:       	White=5     	Black=1      Inaccurate:     	---       	Black=3      OK:         	White=13    	Black=16     Best:        	White=1     	---        Strong:       	White=1     	Black=2} 0-1

[Event "8th Brazilian Open SESC Caioba 2024"]
[Site "Caioba"]
[Date "2024.06.28"]
[Round "7.7"]
[White "Lujan, Carolina"]
[Black "Santiago, Yago De Moura"]
[Result "0-1"]
[ECO "C07"]
[WhiteElo "2269"]
[BlackElo "2462"]
[Annotator "TA"]
[PlyCount "130"]
[EventDate "2024.06.15"]
[EventCountry "BRA"]
[SourceTitle "playchess.com"]
[Source "ChessBase"]
[SourceQuality "1"]
[TimeControl "5400+30"]

{[%evp 11,130,18,13,-9,0,0,9,11,-4,1,-9,-15,-10,-2,0,-3,-10,-61,-21,-20,-25,-6,-9,-20,-20,-194,-58,-57,-41,-148,-85,-85,-84,-84,-84,-229,-39,-39,-41,-39,-44,-169,-165,-172,-168,-181,-185,-207,-204,-237,-199,-212,-162,-186,-175,-187,-191,-227,-226,-247,-229,-331,-222,-321,-212,-204,-203,-211,-212,-298,-205,-220,-185,-187,-192,-222,-222,-225,-169,-260,0,-258,-267,-249,-224,-228,-35,-20,-4,-62,-69,-144,-141,-165,-158,-170,-151,-158,-138,-145,-138,-239,-224,-214,-147,-225,-125,-280,-193,-523,-527,-777,0,-29987,-29988,-29987,-29988,-29988,-29989,-29989,-29990]} 1. e4 {[%emt 0:02:41]} e6 {[%emt 0:00:07]} 2. d4 {[%emt 0:00:09]} d5 {[%emt 0:00:06]} 3. Nd2 {[%emt 0:00:06]} c5 {[%emt 0:00:21]} 4. exd5 {[%emt 0:00:35]} Qxd5 {[%emt 0:00:08]} 5. Ngf3 {[%emt 0:00:11]} cxd4 {[%emt 0:00:11]} 6. Bc4 {[%emt 0:00:39]} Qd6 {[%emt 0:00:10]} 7. Ne4 {[%emt 0:00:59] Repels Nf6} Qb4+ {[%emt 0:00:12]} 8. Nfd2 {[%emt 0:00:11]} Nf6 {[%emt 0:03:08]} 9. c3 {[%emt 0:08:19] The position is equal.} dxc3 {[%emt 0:03:41]} 10. bxc3 {[%emt 0:00:22]} Qa5 {[%emt 0:02:20]} 11. Nxf6+ {[%emt 0:07:58]} gxf6 {[%emt 0:00:09]} 12. O-O {[%emt 0:00:09]} Bd7 {[%emt 0:39:10][%cal Oh8g8]} 13. Ne4 {[%emt 0:08:19]} Be7 {[%emt 0:00:35]} 14. Qf3 {[%emt 0:27:48]} (14. Bf4 $11) 14... Bc6 {[%emt 0:06:03]} 15. Nxf6+ {[%emt 0:08:49]} Bxf6 {[%emt 0:00:32]} 16. Qxf6 {[%emt 0:00:05]} Rg8 {[%emt 0:00:11]} 17. f3 {[%emt 0:01:30][%cal Oc4e6] And now Bxe6! would win.} Nd7 {[%emt 0:00:21]} 18. Qh4 {[%emt 0:09:11]} (18. Qd4 $11 {and White is okay.}) 18... Ne5 {[%emt 0:07:11]} (18... Qxc3 $19 19. Rb1 Ne5) 19. Be2 $15 {[%emt 0:03:42]} Qxc3 $40 {[%emt 0:02:26][%mdl 128] Black has some attack.} 20. Rb1 {[%emt 0:00:25]} (20. Bg5 $15) 20... Bxf3 {[%emt 0:11:22]} (20... Nxf3+ $142 21. Rxf3 (21. Bxf3 $2 Bxf3 22. g3 Qc5+ 23. Rf2 Bc6 $19) 21... Bxf3 22. Bxf3 Qxf3 23. Qa4+ Qc6 24. Qxc6+ bxc6) 21. Bb5+ $17 {[%emt 0:01:50]} (21. Bxf3 $2 Nxf3+ 22. Rxf3 Qxf3 $19) 21... Bc6 {[%emt 0:00:44]} 22. Qf2 {[%emt 0:04:39]} (22. Qxh7 Rxg2+ 23. Kh1 Rg6+ (23... Rxa2+ $2 24. Qe4 $19) 24. Bxc6+ Qxc6+) 22... O-O-O {[%emt 0:04:24]} 23. Rb3 {[%emt 0:01:15]} (23. Bxc6 $17 Qxc6 24. Bh6) 23... Qd4 $2 {[%emt 0:05:35]} (23... Rxg2+ 24. Qxg2 Qd4+ 25. Be3 Bxg2 26. Bxd4 Bxf1 27. Bxe5 Bxb5 28. Rxb5 $14) (23... Nf3+ $1 $19 24. Qxf3 Qc5+ (24... Qxf3 $2 25. Rfxf3 Rd1+ 26. Kf2 $19) 25. Be3 Bxf3 26. Bxc5 Rxg2+ 27. Kh1 Be4 (27... Rxa2+ $2 28. Rbxf3 Rb2 29. Ba4 $18) (27... Bd5 $2 28. Bc4 $19)) 24. Be3 $15 {[%emt 0:02:46] A strong pair of Bishops.} Qe4 {[%emt 0:00:40][%cal Rg8g2]} (24... Rxg2+ $2 25. Qxg2 Bxg2 26. Bxd4 Bxf1 27. Bxe5 Bxb5 28. Rxb5 $18) 25. Bxc6 {[%emt 0:00:28]} Nxc6 {[%emt 0:00:08]} 26. Ra3 {[%emt 0:07:36]} (26. g3 $1 $15) 26... a6 $19 {[%emt 0:00:54]} 27. Bb6 {[%emt 0:00:03][%cal Oa3e3] Strongly threatening Re3!} Rd7 $1 {[%emt 0:01:57]} 28. Rg3 {[%emt 0:02:31]} Rg6 {[%emt 0:00:24]} 29. Rxg6 {[%emt 0:01:07]} hxg6 {[%emt 0:00:02]} ({Resist} 29... Qxg6 30. a4 $17) 30. Qb2 {[%emt 0:00:10]} Qe5 {[%emt 0:02:20]} 31. Qa3 {[%emt 0:00:08]} Rd6 {[%emt 0:06:01]} 32. Bf2 {[%emt 0:00:51]} f5 {[%emt 0:00:47]} 33. Re1 {[%emt 0:00:42]} Qd5 {[%emt 0:00:12]} 34. Qc3 {[%emt 0:00:34]} e5 $1 {[%emt 0:00:23]} ({But not} 34... Qxa2 35. Qh8+ Rd8 36. Qh7 $15) 35. h3 {[%emt 0:00:27]} Qe6 {[%emt 0:02:41]} ({Don't take} 35... Qxa2 36. Rxe5 Rd1+ 37. Re1) 36. Kh1 {[%emt 0:00:20]} (36. a4 $142) 36... Rd5 {[%emt 0:00:23]} 37. Bb6 {[%emt 0:00:19]} (37. a4 $142) 37... Qd6 {[%emt 0:00:24]} 38. Qb3 {[%emt 0:00:24]} Qd7 {[%emt 0:02:29]} 39. Kh2 {[%emt 0:00:36]} Kb8 {[%emt 0:00:32]} 40. Rb1 {[%emt 0:00:17]} (40. a4 $142) 40... Nd4 {[%emt 0:00:34]} 41. Qb4 {[%emt 0:00:16]} Ne6 {[%emt 0:00:16] Repels Qf8+} 42. a4 {[%emt 0:00:26]} e4 {[%emt 0:00:26]} 43. Qb3 {[%emt 0:01:17]} Rd3 {[%emt 0:00:16]} 44. Qc2 {[%emt 0:00:31]} Rd2 {[%emt 0:00:33]} 45. Qb3 {[%emt 0:00:18]} (45. Qc3 $142) 45... Rd3 {[%emt 0:00:14]} 46. Qc2 $1 {[%emt 0:00:02]} Qd6+ {[%emt 0:00:32]} 47. Kh1 {[%emt 0:00:18]} g5 {[%emt 0:00:40]} 48. a5 {[%emt 0:00:11] [#]} Rd5 $2 {[%emt 0:01:02]} (48... Qc6 $1 $19 {[%cal Rc6c2]} 49. Qb2 Rc3) 49. Rc1 $15 {[%emt 0:00:52]} Qd7 {[%emt 0:00:09][%cal Oe4e3] Wards off Qc8+} (49... Qc6 $5 50. Qb2 Qe8 $15) 50. Kh2 {[%emt 0:00:57]} (50. Qc3 $11) 50... e3 {[%emt 0:00:34]} (50... Qc6 {with more complications.} 51. Qb2 Qd6+ 52. Kh1 Rd1+) 51. Bxe3 {[%emt 0:00:39] Black converts the advantage convincingly.} ({White should try} 51. Qc3 $15) 51... Rxa5 $17 {[%emt 0:00:11]} 52. Qb2 {[%emt 0:00:22] [#] Hoping for Qb6.} Rd5 $1 {[%emt 0:00:37]} 53. Qh8+ {[%emt 0:01:04]} Qd8 {[%emt 0:00:05]} 54. Qh5 {[%emt 0:00:19]} Rd3 {[%emt 0:01:17]} 55. Bf2 {[%emt 0:00:13]} Rd2 {[%emt 0:00:20]} 56. Bg3+ {[%emt 0:00:53]} (56. Rf1 $17) 56... f4 $19 {[%emt 0:00:20]} 57. Be1 {[%emt 0:00:04]} Rd5 {[%emt 0:00:59]} 58. Qg6 {[%emt 0:00:33]} (58. Bf2 $17 {might work better.}) 58... Nd4 {[%emt 0:00:17]} ({Better is} 58... Nc5 $19 {aiming for ...Nd3.} 59. Rb1 Qd6) 59. Bb4 $2 {[%emt 0:00:38]} (59. Bf2 $17 {was called for.}) 59... Nc6 {[%emt 0:00:19]} 60. Rxc6 {[%emt 0:00:50]} (60. Bc5) 60... bxc6 {[%emt 0:00:01]} 61. Qxc6 {[%emt 0:00:03] KQR-KQB} f3 $2 {[%emt 0:00:38]} 62. Qxa6 $2 {[%emt 0:00:44][%mdl 8192]} (62. Be1 $11 f2 63. Bxf2) 62... Qc7+ {[%emt 0:00:24] Black mates.} 63. Kg1 {[%emt 0:00:06]} Qc1+ {[%emt 0:00:55]} 64. Kf2 {[%emt 0:01:11]} Qb2+ {[%emt 0:00:18]} 65. Kxf3 {[%emt 0:00:10]} Qxb4 {[%emt 0:00:09] Weighted Error Value: White=0.52/Black=0.44.  Loses game:     	White=2     	---        Missed win:     	---       	Black=3      Mistake:       	White=14    	Black=3      Inaccurate:     	White=1     	Black=6      OK:         	White=15    	Black=18     Best:        	White=5     	Black=4      Strong:       	White=1     	Black=2} 0-1

[Event "8th Brazilian Open SESC Caioba 2024"]
[Site "Caioba"]
[Date "2024.06.28"]
[Round "7.8"]
[White "Casalaspro, Mathias Andre"]
[Black "Cubas, Jose Fernando"]
[Result "1/2-1/2"]
[ECO "B76"]
[WhiteElo "2172"]
[BlackElo "2417"]
[Annotator "RC"]
[PlyCount "112"]
[EventDate "2024.06.15"]
[EventCountry "BRA"]
[SourceTitle "playchess.com"]
[Source "ChessBase"]
[SourceQuality "1"]
[TimeControl "5400+30"]

1. e4 {[%emt 0:00:02]} c5 {[%emt 0:00:12]} 2. Nf3 {[%emt 0:00:11]} d6 {[%emt 0:01:01]} 3. d4 {[%emt 0:00:05]} cxd4 {[%emt 0:00:05]} 4. Nxd4 {[%emt 0:00:06]} Nf6 {[%emt 0:00:35]} 5. Nc3 {[%emt 0:00:09]} g6 {[%emt 0:00:45]} 6. Be3 {[%emt 0:00:12]} Bg7 {[%emt 0:00:05]} 7. f3 {[%emt 0:00:04]} Nc6 {[%emt 0:00:04]} 8. Qd2 {[%emt 0:00:20]} O-O {[%emt 0:00:18]} 9. O-O-O {[%emt 0:00:08]} d5 {[%emt 0:00:08]} 10. exd5 {[%emt 0:00:10]} Nxd5 {[%emt 0:00:08]} 11. Nxc6 {[%emt 0:00:24]} bxc6 {[%emt 0:00:04]} 12. Bd4 {[%emt 0:00:05]} Bxd4 {[%emt 0:05:56]} 13. Qxd4 {[%emt 0:00:20]} Qb6 {[%emt 0:00:04]} 14. Na4 {[%emt 0:00:47]} Qc7 {[%emt 0:14:09]} 15. h4 {[%emt 0:23:37]} Rb8 {[%emt 0:02:18]} 16. a3 {[%emt 0:00:58]} e5 {[%emt 0:14:37]} 17. Qc5 {[%emt 0:04:50]} Be6 {[%emt 0:03:17]} 18. Bc4 {[%emt 0:05:11]} Nb6 {[%emt 0:15:31]} 19. Nxb6 {[%emt 0:02:19]} axb6 {[%emt 0:00:15]} 20. Qb4 {[%emt 0:00:10]} c5 {[%emt 0:00:04]} 21. Qb5 {[%emt 0:00:38]} Bxc4 {[%emt 0:00:03]} 22. Qxc4 {[%emt 0:00:10]} b5 {[%emt 0:00:02]} 23. Qe4 {[%emt 0:01:04]} b4 {[%emt 0:00:05]} 24. a4 {[%emt 0:01:54]} b3 {[%emt 0:00:55]} 25. c3 {[%emt 0:03:15]} c4 {[%emt 0:04:08]} 26. h5 {[%emt 0:12:49]} Ra8 {[%emt 0:03:51]} 27. hxg6 {[%emt 0:00:13]} fxg6 {[%emt 0:00:06]} 28. Qg4 {[%emt 0:04:40]} Rf7 {[%emt 0:20:05]} 29. Qh4 {[%emt 0:03:53]} Rxa4 {[%emt 0:06:33]} 30. Rd8+ {[%emt 0:00:10]} Rf8 {[%emt 0:00:01]} 31. Rxf8+ {[%emt 0:00:27]} Kxf8 {[%emt 0:00:02]} 32. Qf6+ {[%emt 0:00:32]} Kg8 {[%emt 0:00:42]} 33. Qe6+ {[%emt 0:04:53]} Qf7 {[%emt 0:03:20]} 34. Qxf7+ {[%emt 0:04:01]} Kxf7 {[%emt 0:00:01]} 35. Rxh7+ {[%emt 0:00:12]} Ke6 {[%emt 0:00:56]} 36. Kb1 {[%emt 0:01:29]} Ra8 {[%emt 0:00:34]} 37. Rh6 {[%emt 0:00:37]} Kd5 {[%emt 0:01:42]} 38. Rh4 {[%emt 0:00:57]} g5 {[%emt 0:00:12]} 39. Rh5 {[%emt 0:01:34]} Rf8 {[%emt 0:04:05]} 40. Rxg5 {[%emt 0:01:40]} Rh8 {[%emt 0:00:01]} 41. Kc1 {[%emt 0:00:11]} Rh1+ {[%emt 0:00:04]} 42. Kd2 {[%emt 0:00:04]} Rb1 {[%emt 0:00:03]} 43. f4 {[%emt 0:00:14]} Rxb2+ {[%emt 0:00:03]} 44. Kd1 {[%emt 0:02:34]} Rb1+ {[%emt 0:02:52]} 45. Kd2 {[%emt 0:00:04]} Re1 {[%emt 0:00:14]} 46. Kxe1 {[%emt 0:01:52]} b2 {[%emt 0:00:01]} 47. Rxe5+ {[%emt 0:00:14]} Kc6 {[%emt 0:00:01]} 48. Kf2 {[%emt 0:01:10]} b1=Q {[%emt 0:00:05]} 49. Re3 {[%emt 0:00:18]} Qc2+ {[%emt 0:00:37]} 50. Kf3 {[%emt 0:00:11]} Qd1+ {[%emt 0:00:13]} 51. Kg3 {[%emt 0:00:55]} Qf1 {[%emt 0:01:00]} 52. Rf3 {[%emt 0:00:14]} Qe1+ {[%emt 0:00:08]} 53. Kh3 {[%emt 0:00:15]} Qh1+ {[%emt 0:00:12]} 54. Kg3 {[%emt 0:00:05]} Qe1+ {[%emt 0:00:01]} 55. Kh3 {[%emt 0:00:08]} Qh1+ {[%emt 0:03:23]} 56. Kg3 {[%emt 0:00:05]} Qe1+ {[%emt 0:01:18]} 1/2-1/2